[Event "Late-Titled-Tuesday-Blitz-January-16-2024"]
[Site "Chess.com"]
[Date "2024.01.16"]
[Round "8"]
[White "Doudou2015"]
[Black "Akhayan"]
[Result "1/2-1/2"]
[WhiteElo "2212"]
[BlackElo "2348"]
[TimeControl "180+1"]
[EndTime "15:29:09 PST"]
[Termination "Game drawn - insufficient material"]

1. b3 {[%clk 0:02:56]} 1... a6 {[%clk 0:02:59.2]} 2. Bb2 {[%clk 0:02:56.9]} 2...
b5 {[%clk 0:02:59.4]} 3. Nf3 {[%clk 0:02:55.6]} 3... Bb7 {[%clk 0:03:00.1]} 4.
g3 {[%clk 0:02:56.5]} 4... e6 {[%clk 0:02:59.6]} 5. Bg2 {[%clk 0:02:56.5]} 5...
Nf6 {[%clk 0:02:59.8]} 6. O-O {[%clk 0:02:57]} 6... g6 {[%clk 0:03:00]} 7. c4
{[%clk 0:02:57.2]} 7... Bg7 {[%clk 0:02:59.9]} 8. e3 {[%clk 0:02:56.3]} 8... O-O
{[%clk 0:03:00.1]} 9. c5 {[%clk 0:02:49.3]} 9... d6 {[%clk 0:03:00]} 10. cxd6
{[%clk 0:02:49.1]} 10... cxd6 {[%clk 0:03:00]} 11. d3 {[%clk 0:02:47.9]} 11...
Nbd7 {[%clk 0:02:59.5]} 12. Nbd2 {[%clk 0:02:48]} 12... Rc8 {[%clk 0:02:59.2]}
13. Rc1 {[%clk 0:02:48.1]} 13... Qa5 {[%clk 0:02:57.3]} 14. Rxc8 {[%clk
0:02:45.3]} 14... Rxc8 {[%clk 0:02:56.8]} 15. Qa1 {[%clk 0:02:46]} 15... Ne8
{[%clk 0:02:53.5]} 16. Bxg7 {[%clk 0:02:44.8]} 16... Nxg7 {[%clk 0:02:54.1]} 17.
Rc1 {[%clk 0:02:13.4]} 17... Qd8 {[%clk 0:02:39.1]} 18. Rc3 {[%clk 0:02:02.6]}
18... Rc5 {[%clk 0:02:36.6]} 19. d4 {[%clk 0:01:54.8]} 19... Rxc3 {[%clk
0:02:33.7]} 20. Qxc3 {[%clk 0:01:55.7]} 20... Nb6 {[%clk 0:02:26.9]} 21. e4
{[%clk 0:01:41.8]} 21... Nh5 {[%clk 0:02:11.2]} 22. Ne1 {[%clk 0:01:29.8]} 22...
Nf6 {[%clk 0:02:01.4]} 23. Nd3 {[%clk 0:01:27.2]} 23... Qc8 {[%clk 0:01:55.5]}
24. Qxc8+ {[%clk 0:01:21.8]} 24... Nxc8 {[%clk 0:01:55.7]} 25. e5 {[%clk
0:01:18.7]} 25... Bxg2 {[%clk 0:01:53.7]} 26. Kxg2 {[%clk 0:01:05.5]} 26... Nd5
{[%clk 0:01:53.4]} 27. Ne4 {[%clk 0:01:01.4]} 27... dxe5 {[%clk 0:01:53.2]} 28.
dxe5 {[%clk 0:00:57.1]} 28... Kf8 {[%clk 0:01:50.9]} 29. Ndc5 {[%clk 0:00:55.8]}
29... a5 {[%clk 0:01:48]} 30. Nd7+ {[%clk 0:00:36.5]} 30... Ke7 {[%clk
0:01:46.7]} 31. Ndf6 {[%clk 0:00:27.8]} 31... h5 {[%clk 0:01:34.1]} 32. Kf3
{[%clk 0:00:24.5]} 32... Ncb6 {[%clk 0:01:33]} 33. Ke2 {[%clk 0:00:18.2]} 33...
a4 {[%clk 0:01:27]} 34. bxa4 {[%clk 0:00:17.9]} 34... bxa4 {[%clk 0:01:26.2]}
35. a3 {[%clk 0:00:17.2]} 35... Nc4 {[%clk 0:01:22.5]} 36. Nxd5+ {[%clk
0:00:09.9]} 36... exd5 {[%clk 0:01:22.7]} 37. Nc5 {[%clk 0:00:10.8]} 37... Nxa3
{[%clk 0:01:21.2]} 38. Nxa4 {[%clk 0:00:11]} 38... Ke6 {[%clk 0:01:21.6]} 39. f4
{[%clk 0:00:10.2]} 39... Kf5 {[%clk 0:01:20.5]} 40. Ke3 {[%clk 0:00:09.7]} 40...
Nb5 {[%clk 0:01:16.5]} 41. Nc5 {[%clk 0:00:09.2]} 41... g5 {[%clk 0:01:06.6]}
42. h3 {[%clk 0:00:07.6]} 42... gxf4+ {[%clk 0:00:49.4]} 43. gxf4 {[%clk
0:00:08.5]} 43... h4 {[%clk 0:00:50]} 44. Nb7 {[%clk 0:00:06.1]} 44... d4+
{[%clk 0:00:45.4]} 45. Kf3 {[%clk 0:00:05.5]} 45... d3 {[%clk 0:00:45]} 46. Nc5
{[%clk 0:00:04.6]} 46... d2 {[%clk 0:00:42.3]} 47. Ke2 {[%clk 0:00:04.5]} 47...
Kxf4 {[%clk 0:00:39.1]} 48. Kxd2 {[%clk 0:00:05.4]} 48... Kg3 {[%clk 0:00:29.6]}
49. e6 {[%clk 0:00:05.4]} 49... fxe6 {[%clk 0:00:28.9]} 50. Nxe6 {[%clk
0:00:06.3]} 50... Kxh3 {[%clk 0:00:29.3]} 51. Ke2 {[%clk 0:00:06.8]} 51... Kg3
{[%clk 0:00:28.5]} 52. Kf1 {[%clk 0:00:06.4]} 52... h3 {[%clk 0:00:27.6]} 53.
Kg1 {[%clk 0:00:06.4]} 53... Nd6 {[%clk 0:00:27.1]} 54. Ng5 {[%clk 0:00:05.1]}
54... h2+ {[%clk 0:00:26.4]} 55. Kh1 {[%clk 0:00:05.5]} 55... Nf5 {[%clk
0:00:25]} 56. Ne4+ {[%clk 0:00:05.5]} 56... Kh3 {[%clk 0:00:25.3]} 57. Nf2+
{[%clk 0:00:05.9]} 57... Kg3 {[%clk 0:00:25]} 58. Ne4+ {[%clk 0:00:06.3]} 58...
Kf4 {[%clk 0:00:23.4]} 59. Kxh2 {[%clk 0:00:06.1]} 1/2-1/2

[Event "Late-Titled-Tuesday-Blitz-January-16-2024"]
[Site "Chess.com"]
[Date "2024.01.16"]
[Round "8"]
[White "MathiasWomacka"]
[Black "ritanovikova"]
[Result "0-1"]
[WhiteElo "2534"]
[BlackElo "2193"]
[TimeControl "180+1"]
[EndTime "15:29:13 PST"]
[Termination "ritanovikova won on time"]

1. e4 {[%clk 0:02:58.1]} 1... d5 {[%clk 0:02:57.8]} 2. exd5 {[%clk 0:02:56.2]}
2... Qxd5 {[%clk 0:02:57.6]} 3. Nc3 {[%clk 0:02:51.1]} 3... Qd6 {[%clk
0:02:57.7]} 4. d4 {[%clk 0:02:48]} 4... Nf6 {[%clk 0:02:56.3]} 5. Nf3 {[%clk
0:02:45.8]} 5... a6 {[%clk 0:02:56.5]} 6. g3 {[%clk 0:02:41.8]} 6... Bg4 {[%clk
0:02:55.3]} 7. Bg2 {[%clk 0:02:40.5]} 7... Nc6 {[%clk 0:02:55.3]} 8. O-O {[%clk
0:02:38.2]} 8... O-O-O {[%clk 0:02:46.2]} 9. d5 {[%clk 0:02:22.4]} 9... Nxd5
{[%clk 0:02:39]} 10. Nxd5 {[%clk 0:02:19]} 10... Qxd5 {[%clk 0:02:39]} 11. Qxd5
{[%clk 0:02:17]} 11... Rxd5 {[%clk 0:02:37.7]} 12. Ng5 {[%clk 0:02:17.5]} 12...
Rc5 {[%clk 0:01:50.3]} 13. Nxf7 {[%clk 0:02:12.1]} 13... Rg8 {[%clk 0:01:50.2]}
14. c3 {[%clk 0:02:03.9]} 14... h6 {[%clk 0:01:37.8]} 15. Re1 {[%clk 0:01:37.3]}
15... Bh5 {[%clk 0:01:04.9]} 16. Bh3+ {[%clk 0:01:17.2]} 16... Kb8 {[%clk
0:00:57]} 17. Be6 {[%clk 0:01:17.7]} 17... Bxf7 {[%clk 0:00:41.9]} 18. Bxf7
{[%clk 0:01:18.6]} 18... Rh8 {[%clk 0:00:42.2]} 19. Be3 {[%clk 0:01:03.9]} 19...
Rf5 {[%clk 0:00:41.5]} 20. Be6 {[%clk 0:00:54]} 20... Rf6 {[%clk 0:00:41.4]} 21.
Bc5 {[%clk 0:00:36.3]} 21... b6 {[%clk 0:00:31.9]} 22. Ba3 {[%clk 0:00:34.7]}
22... Nd8 {[%clk 0:00:28.9]} 23. Bh3 {[%clk 0:00:23]} 23... e6 {[%clk
0:00:26.1]} 24. Bxf8 {[%clk 0:00:19.3]} 24... Rhxf8 {[%clk 0:00:27]} 25. Re2
{[%clk 0:00:17.7]} 25... g5 {[%clk 0:00:22.7]} 26. Rae1 {[%clk 0:00:18]} 26...
h5 {[%clk 0:00:19.7]} 27. Bg2 {[%clk 0:00:14.7]} 27... h4 {[%clk 0:00:13.9]} 28.
Rd1 {[%clk 0:00:12.6]} 28... hxg3 {[%clk 0:00:08.8]} 29. hxg3 {[%clk 0:00:12.2]}
29... Nb7 {[%clk 0:00:09.1]} 30. Rd7 {[%clk 0:00:10.2]} 30... Nd6 {[%clk
0:00:09]} 31. Re7 {[%clk 0:00:09.5]} 31... Re8 {[%clk 0:00:06.7]} 32. Rxe8+
{[%clk 0:00:08.3]} 32... Nxe8 {[%clk 0:00:07.6]} 33. f3 {[%clk 0:00:06.2]} 33...
Ng7 {[%clk 0:00:06.6]} 34. Kf2 {[%clk 0:00:07.1]} 34... g4 {[%clk 0:00:06.7]}
35. f4 {[%clk 0:00:06.1]} 35... Kc8 {[%clk 0:00:06.2]} 36. Re5 {[%clk
0:00:02.9]} 36... Nf5 {[%clk 0:00:05.1]} 37. Be4 {[%clk 0:00:03.8]} 37... Kd7
{[%clk 0:00:05.1]} 38. Bxf5 {[%clk 0:00:02]} 38... Rxf5 {[%clk 0:00:05.2]} 39.
Rxf5 {[%clk 0:00:02.9]} 39... exf5 {[%clk 0:00:06.1]} 40. Ke3 {[%clk 0:00:03.2]}
40... Ke6 {[%clk 0:00:05.6]} 41. Kd4 {[%clk 0:00:02.2]} 41... Kd6 {[%clk
0:00:06]} 42. c4 {[%clk 0:00:01.9]} 42... c5+ {[%clk 0:00:06.1]} 43. Kc3 {[%clk
0:00:01.2]} 43... Kc6 {[%clk 0:00:06.2]} 0-1

[Event "Late-Titled-Tuesday-Blitz-January-16-2024"]
[Site "Chess.com"]
[Date "2024.01.16"]
[Round "8"]
[White "MasterofMasters2006"]
[Black "BozeKat"]
[Result "1-0"]
[WhiteElo "2251"]
[BlackElo "2098"]
[TimeControl "180+1"]
[EndTime "15:29:15 PST"]
[Termination "MasterofMasters2006 won on time"]

1. d4 {[%clk 0:03:00.9]} 1... Nf6 {[%clk 0:02:56.4]} 2. c4 {[%clk 0:03:01]} 2...
e6 {[%clk 0:02:56.3]} 3. Nf3 {[%clk 0:03:00.3]} 3... b6 {[%clk 0:02:55.9]} 4. g3
{[%clk 0:02:59.6]} 4... Ba6 {[%clk 0:02:54.4]} 5. Qc2 {[%clk 0:02:59.5]} 5... c5
{[%clk 0:02:53.4]} 6. d5 {[%clk 0:02:58.2]} 6... exd5 {[%clk 0:02:53.9]} 7. cxd5
{[%clk 0:02:58.8]} 7... Bb7 {[%clk 0:02:54.5]} 8. Bg2 {[%clk 0:02:52.1]} 8...
Bxd5 {[%clk 0:02:51.3]} 9. Nc3 {[%clk 0:02:49.6]} 9... Bb7 {[%clk 0:02:49]} 10.
O-O {[%clk 0:02:48.9]} 10... Be7 {[%clk 0:02:48.6]} 11. e4 {[%clk 0:02:48.7]}
11... d6 {[%clk 0:02:45.1]} 12. Nh4 {[%clk 0:02:49.1]} 12... O-O {[%clk
0:02:37.5]} 13. Nf5 {[%clk 0:02:46.5]} 13... Re8 {[%clk 0:02:35]} 14. Rd1 {[%clk
0:02:44.1]} 14... Bf8 {[%clk 0:02:34.9]} 15. Bg5 {[%clk 0:02:32.2]} 15... h6
{[%clk 0:02:27.7]} 16. Bf4 {[%clk 0:02:26.8]} 16... Re6 {[%clk 0:02:10.5]} 17.
Rd2 {[%clk 0:01:42.3]} 17... Qe8 {[%clk 0:01:52.9]} 18. Nxd6 {[%clk 0:01:23.7]}
18... Bxd6 {[%clk 0:01:52.6]} 19. Rxd6 {[%clk 0:01:24.3]} 19... Nc6 {[%clk
0:01:44.6]} 20. Rxe6 {[%clk 0:01:03.8]} 20... Qxe6 {[%clk 0:01:42.8]} 21. Rd1
{[%clk 0:00:52]} 21... Nd4 {[%clk 0:01:41.5]} 22. Qb1 {[%clk 0:00:50.6]} 22...
Re8 {[%clk 0:01:41]} 23. Re1 {[%clk 0:00:43.9]} 23... Qg4 {[%clk 0:01:31.4]} 24.
Qd3 {[%clk 0:00:34.2]} 24... Nh5 {[%clk 0:01:14.9]} 25. Be3 {[%clk 0:00:21.9]}
25... Nf3+ {[%clk 0:01:10.7]} 26. Bxf3 {[%clk 0:00:21.9]} 26... Qxf3 {[%clk
0:01:11]} 27. Qd7 {[%clk 0:00:21.6]} 27... Nf6 {[%clk 0:00:22]} 28. Qxb7 {[%clk
0:00:20.8]} 28... h5 {[%clk 0:00:19.3]} 29. Bg5 {[%clk 0:00:11.7]} 29... Ng4
{[%clk 0:00:17.1]} 30. Rf1 {[%clk 0:00:09.4]} 30... f6 {[%clk 0:00:14.3]} 31.
Bf4 {[%clk 0:00:07.6]} 31... h4 {[%clk 0:00:13.6]} 32. Qd5+ {[%clk 0:00:02.6]}
32... Kh8 {[%clk 0:00:12.4]} 33. Qh5+ {[%clk 0:00:02.5]} 33... Kg8 {[%clk
0:00:11.2]} 34. Qxe8+ {[%clk 0:00:03.4]} 34... Kh7 {[%clk 0:00:10.3]} 35. Qh5+
{[%clk 0:00:02.9]} 35... Kg8 {[%clk 0:00:10.1]} 36. Qxh4 {[%clk 0:00:03.8]}
36... g5 {[%clk 0:00:05.7]} 37. Bxg5 {[%clk 0:00:03.1]} 37... fxg5 {[%clk
0:00:05.9]} 38. Qxg5+ {[%clk 0:00:04]} 38... Kf7 {[%clk 0:00:05.8]} 39. Qf4+
{[%clk 0:00:04.6]} 39... Qxf4 {[%clk 0:00:05.1]} 40. gxf4 {[%clk 0:00:05.5]}
40... Nf6 {[%clk 0:00:05.1]} 41. f3 {[%clk 0:00:06.1]} 41... Nd7 {[%clk
0:00:05.1]} 42. Rd1 {[%clk 0:00:06.6]} 42... Nb8 {[%clk 0:00:05]} 43. Rd8 {[%clk
0:00:06.7]} 43... Nc6 {[%clk 0:00:05.3]} 44. Rd7+ {[%clk 0:00:07.1]} 44... Ke6
{[%clk 0:00:05.6]} 45. Rc7 {[%clk 0:00:08]} 45... Nd4 {[%clk 0:00:05.5]} 46. Kf2
{[%clk 0:00:07.6]} 46... a6 {[%clk 0:00:03.9]} 47. Rc6+ {[%clk 0:00:07.3]} 47...
Kd7 {[%clk 0:00:04.2]} 48. Rxb6 {[%clk 0:00:07.2]} 48... Kc7 {[%clk 0:00:01.3]}
49. Rxa6 {[%clk 0:00:07.2]} 1-0

[Event "Late-Titled-Tuesday-Blitz-January-16-2024"]
[Site "Chess.com"]
[Date "2024.01.16"]
[Round "8"]
[White "Rutricks"]
[Black "maximnovik"]
[Result "0-1"]
[WhiteElo "2699"]
[BlackElo "2556"]
[TimeControl "180+1"]
[EndTime "15:29:19 PST"]
[Termination "maximnovik won on time"]

1. c4 {[%clk 0:03:00.9]} 1... Nf6 {[%clk 0:02:59]} 2. b3 {[%clk 0:02:59.9]} 2...
g6 {[%clk 0:02:57.9]} 3. Bb2 {[%clk 0:03:00.8]} 3... Bg7 {[%clk 0:02:58.3]} 4.
Nf3 {[%clk 0:03:01.2]} 4... O-O {[%clk 0:02:58.2]} 5. e3 {[%clk 0:03:01.2]} 5...
b6 {[%clk 0:02:54.9]} 6. Be2 {[%clk 0:03:01.5]} 6... Bb7 {[%clk 0:02:55.4]} 7.
O-O {[%clk 0:03:02.3]} 7... c5 {[%clk 0:02:55.4]} 8. d4 {[%clk 0:03:02.5]} 8...
cxd4 {[%clk 0:02:48.6]} 9. Qxd4 {[%clk 0:03:02.5]} 9... d6 {[%clk 0:02:46.3]}
10. Nc3 {[%clk 0:03:02.2]} 10... Nbd7 {[%clk 0:02:46.2]} 11. Rad1 {[%clk
0:03:01.1]} 11... a6 {[%clk 0:02:46.3]} 12. Qh4 {[%clk 0:02:56.6]} 12... Rc8
{[%clk 0:02:42.4]} 13. Nd4 {[%clk 0:02:55.7]} 13... Rc5 {[%clk 0:02:23.5]} 14.
Qh3 {[%clk 0:02:11.3]} 14... Qa8 {[%clk 0:02:18.9]} 15. Bf3 {[%clk 0:02:03.6]}
15... Ne5 {[%clk 0:02:09.2]} 16. Bxb7 {[%clk 0:02:01.9]} 16... Qxb7 {[%clk
0:02:09.6]} 17. Ba3 {[%clk 0:01:55.6]} 17... Rc7 {[%clk 0:02:06.4]} 18. f4
{[%clk 0:01:55.8]} 18... Ned7 {[%clk 0:02:03.4]} 19. Qf3 {[%clk 0:01:52.3]}
19... Qxf3 {[%clk 0:01:59.8]} 20. gxf3 {[%clk 0:01:53.2]} 20... b5 {[%clk
0:01:53.6]} 21. Rc1 {[%clk 0:01:46.6]} 21... bxc4 {[%clk 0:01:51]} 22. b4 {[%clk
0:01:34.5]} 22... Nb6 {[%clk 0:01:34.4]} 23. Kf2 {[%clk 0:01:24.5]} 23... Nfd5
{[%clk 0:01:31.9]} 24. Ne4 {[%clk 0:01:15.7]} 24... Nxf4 {[%clk 0:01:28.5]} 25.
Rfd1 {[%clk 0:01:09.3]} 25... Nfd5 {[%clk 0:01:17.5]} 26. Nc2 {[%clk 0:01:00.2]}
26... Rfc8 {[%clk 0:01:09.8]} 27. Rb1 {[%clk 0:00:57.9]} 27... f5 {[%clk
0:01:05.7]} 28. Ng5 {[%clk 0:00:56]} 28... Nc3 {[%clk 0:01:05.8]} 29. Ne6 {[%clk
0:00:56.8]} 29... Nxb1 {[%clk 0:00:59.5]} 30. Rxb1 {[%clk 0:00:54.3]} 30... Rb7
{[%clk 0:00:52.3]} 31. Nxg7 {[%clk 0:00:40.4]} 31... Kxg7 {[%clk 0:00:51.8]} 32.
Bb2+ {[%clk 0:00:36.9]} 32... Kf7 {[%clk 0:00:51.8]} 33. e4 {[%clk 0:00:25]}
33... Na4 {[%clk 0:00:49.5]} 34. Bc1 {[%clk 0:00:17.8]} 34... e5 {[%clk
0:00:45.4]} 35. exf5 {[%clk 0:00:15.6]} 35... gxf5 {[%clk 0:00:45.1]} 36. Bh6
{[%clk 0:00:16.5]} 36... Rg8 {[%clk 0:00:39.6]} 37. Rd1 {[%clk 0:00:16.3]} 37...
Ke6 {[%clk 0:00:39.1]} 38. Re1 {[%clk 0:00:16]} 38... Kf6 {[%clk 0:00:32.4]} 39.
Rd1 {[%clk 0:00:16.1]} 39... Ke6 {[%clk 0:00:32.3]} 40. Re1 {[%clk 0:00:16.3]}
40... Rg6 {[%clk 0:00:32.5]} 41. Bc1 {[%clk 0:00:14.7]} 41... Kf7 {[%clk
0:00:29.9]} 42. a3 {[%clk 0:00:14.2]} 42... Nb6 {[%clk 0:00:27.2]} 43. Bb2
{[%clk 0:00:11.7]} 43... f4 {[%clk 0:00:25.2]} 44. Rd1 {[%clk 0:00:09.5]} 44...
Rc7 {[%clk 0:00:23.6]} 45. Bc3 {[%clk 0:00:05.8]} 45... Ke6 {[%clk 0:00:19.9]}
46. Re1 {[%clk 0:00:05.7]} 46... Kf5 {[%clk 0:00:18.9]} 47. Rd1 {[%clk
0:00:05.8]} 47... d5 {[%clk 0:00:18.3]} 48. b5 {[%clk 0:00:02.4]} 48... Rcg7
{[%clk 0:00:17]} 49. Ne1 {[%clk 0:00:01.5]} 49... d4 {[%clk 0:00:16.1]} 50. Ba5
{[%clk 0:00:01.9]} 50... Nd5 {[%clk 0:00:15]} 51. bxa6 {[%clk 0:00:02]} 51...
Rxa6 {[%clk 0:00:14.2]} 52. Bd2 {[%clk 0:00:02.5]} 52... c3 {[%clk 0:00:14.1]}
53. Bc1 {[%clk 0:00:02.9]} 53... Rb6 {[%clk 0:00:12.7]} 54. Nd3 {[%clk
0:00:02.7]} 54... Ne3 {[%clk 0:00:12.6]} 0-1

[Event "Late-Titled-Tuesday-Blitz-January-16-2024"]
[Site "Chess.com"]
[Date "2024.01.16"]
[Round "8"]
[White "pirulillo"]
[Black "The_Straightforward_Rook"]
[Result "0-1"]
[WhiteElo "2288"]
[BlackElo "2471"]
[TimeControl "180+1"]
[EndTime "15:29:26 PST"]
[Termination "The_Straightforward_Rook won on time"]

1. e4 {[%clk 0:03:00.9]} 1... c6 {[%clk 0:02:57]} 2. Nc3 {[%clk 0:02:53.3]} 2...
d5 {[%clk 0:02:57.9]} 3. Nf3 {[%clk 0:02:53.1]} 3... dxe4 {[%clk 0:02:57.9]} 4.
Nxe4 {[%clk 0:02:52.4]} 4... Nf6 {[%clk 0:02:58.8]} 5. Nxf6+ {[%clk 0:02:38.9]}
5... exf6 {[%clk 0:02:59.7]} 6. d4 {[%clk 0:02:34.8]} 6... Bd6 {[%clk
0:02:59.9]} 7. Bd3 {[%clk 0:02:26.4]} 7... O-O {[%clk 0:02:58.9]} 8. O-O {[%clk
0:02:27]} 8... Bg4 {[%clk 0:02:59.1]} 9. c3 {[%clk 0:02:25.8]} 9... Na6 {[%clk
0:02:56.6]} 10. h3 {[%clk 0:02:25.6]} 10... Bh5 {[%clk 0:02:55.6]} 11. g4 {[%clk
0:02:17.5]} 11... Bg6 {[%clk 0:02:54.8]} 12. Nh4 {[%clk 0:02:18]} 12... Nc7
{[%clk 0:02:47.4]} 13. f4 {[%clk 0:02:15.4]} 13... Bxd3 {[%clk 0:02:42.1]} 14.
Qxd3 {[%clk 0:02:16.3]} 14... Nd5 {[%clk 0:02:42]} 15. a3 {[%clk 0:02:07.9]}
15... Qc7 {[%clk 0:02:31.8]} 16. Ng2 {[%clk 0:02:04.9]} 16... b5 {[%clk
0:02:27.2]} 17. b3 {[%clk 0:02:01.3]} 17... Rfe8 {[%clk 0:02:26.1]} 18. c4
{[%clk 0:01:59.5]} 18... bxc4 {[%clk 0:02:08.6]} 19. bxc4 {[%clk 0:02:00.4]}
19... Ne7 {[%clk 0:02:01.4]} 20. c5 {[%clk 0:01:58]} 20... Rad8 {[%clk
0:02:00.4]} 21. Qf3 {[%clk 0:01:23.8]} 21... Nd5 {[%clk 0:01:34.5]} 22. cxd6
{[%clk 0:01:23.2]} 22... Qxd6 {[%clk 0:01:35.4]} 23. a4 {[%clk 0:01:19.5]} 23...
Qb4 {[%clk 0:01:30.2]} 24. Rd1 {[%clk 0:01:12.5]} 24... Nc3 {[%clk 0:01:25.4]}
25. Rd3 {[%clk 0:01:04.7]} 25... Ne2+ {[%clk 0:01:21.7]} 26. Kh2 {[%clk
0:01:02.5]} 26... Nxd4 {[%clk 0:01:22.3]} 27. Qd1 {[%clk 0:01:00.7]} 27... c5
{[%clk 0:01:17.8]} 28. Ba3 {[%clk 0:00:58.1]} 28... Qb6 {[%clk 0:01:04.5]} 29.
Rc1 {[%clk 0:00:53.2]} 29... Ne6 {[%clk 0:00:55.3]} 30. Rxd8 {[%clk 0:00:43.6]}
30... Rxd8 {[%clk 0:00:56.2]} 31. Qc2 {[%clk 0:00:43.3]} 31... Qc6 {[%clk
0:00:53.4]} 32. f5 {[%clk 0:00:40.9]} 32... Nd4 {[%clk 0:00:48.5]} 33. Qxc5
{[%clk 0:00:38.2]} 33... Nf3+ {[%clk 0:00:47.4]} 34. Kg3 {[%clk 0:00:34.4]}
34... Qe4 {[%clk 0:00:43]} 35. Qe7 {[%clk 0:00:29.8]} 35... Qd3 {[%clk
0:00:37.5]} 36. Rc3 {[%clk 0:00:25.9]} 36... Qd4 {[%clk 0:00:19.9]} 37. Rxf3
{[%clk 0:00:24.7]} 37... h5 {[%clk 0:00:20.8]} 38. Qe3 {[%clk 0:00:18.7]} 38...
Qxa4 {[%clk 0:00:19.3]} 39. Be7 {[%clk 0:00:18.5]} 39... Re8 {[%clk 0:00:18.9]}
40. g5 {[%clk 0:00:17.4]} 40... Qd7 {[%clk 0:00:14.6]} 41. gxf6 {[%clk
0:00:16.5]} 41... gxf6 {[%clk 0:00:14.9]} 42. Nf4 {[%clk 0:00:14.5]} 42... Rxe7
{[%clk 0:00:14.6]} 43. Qg1 {[%clk 0:00:13.5]} 43... Qxf5 {[%clk 0:00:14.3]} 44.
Kh4+ {[%clk 0:00:13]} 44... Kf8 {[%clk 0:00:14.5]} 45. Kg3 {[%clk 0:00:08.1]}
45... Re4 {[%clk 0:00:10.1]} 46. Qxa7 {[%clk 0:00:04.4]} 46... Qg5+ {[%clk
0:00:09.8]} 47. Kf2 {[%clk 0:00:04.8]} 47... Kg7 {[%clk 0:00:06.2]} 0-1

[Event "Late-Titled-Tuesday-Blitz-January-16-2024"]
[Site "Chess.com"]
[Date "2024.01.16"]
[Round "8"]
[White "vugarrasulov"]
[Black "dropstoneDP"]
[Result "0-1"]
[WhiteElo "2968"]
[BlackElo "3024"]
[TimeControl "180+1"]
[EndTime "15:29:37 PST"]
[Termination "dropstoneDP won on time"]

1. d4 {[%clk 0:03:00.9]} 1... d5 {[%clk 0:02:59.9]} 2. c4 {[%clk 0:03:01]} 2...
dxc4 {[%clk 0:03:00.8]} 3. Nf3 {[%clk 0:03:00.3]} 3... Nf6 {[%clk 0:03:01.1]} 4.
e3 {[%clk 0:03:00.7]} 4... e6 {[%clk 0:03:01.2]} 5. Bxc4 {[%clk 0:03:00.9]} 5...
c5 {[%clk 0:03:00.5]} 6. O-O {[%clk 0:03:01.2]} 6... Nc6 {[%clk 0:03:00.2]} 7.
Nc3 {[%clk 0:02:57.4]} 7... a6 {[%clk 0:02:59.2]} 8. a3 {[%clk 0:02:52]} 8... b5
{[%clk 0:02:57.5]} 9. Ba2 {[%clk 0:02:45.7]} 9... Bb7 {[%clk 0:02:48.5]} 10. d5
{[%clk 0:02:43]} 10... exd5 {[%clk 0:02:45.4]} 11. Nxd5 {[%clk 0:02:43.9]} 11...
Nxd5 {[%clk 0:02:44.2]} 12. Bxd5 {[%clk 0:02:44.8]} 12... Bd6 {[%clk 0:02:43.5]}
13. e4 {[%clk 0:02:43.3]} 13... O-O {[%clk 0:02:42.9]} 14. a4 {[%clk 0:02:31.9]}
14... Qc7 {[%clk 0:02:40.7]} 15. axb5 {[%clk 0:02:26.5]} 15... axb5 {[%clk
0:02:41.6]} 16. Rxa8 {[%clk 0:02:26.9]} 16... Bxa8 {[%clk 0:02:41.4]} 17. g3
{[%clk 0:02:23.1]} 17... Ne5 {[%clk 0:02:35.1]} 18. Bxa8 {[%clk 0:02:09.5]}
18... Rxa8 {[%clk 0:02:30.8]} 19. Nxe5 {[%clk 0:02:01.2]} 19... Bxe5 {[%clk
0:02:31.7]} 20. b3 {[%clk 0:01:55.5]} 20... c4 {[%clk 0:02:28.8]} 21. bxc4
{[%clk 0:01:56.4]} 21... bxc4 {[%clk 0:02:28.9]} 22. Be3 {[%clk 0:01:47.2]}
22... c3 {[%clk 0:02:27]} 23. Qd5 {[%clk 0:01:41.2]} 23... Rd8 {[%clk
0:02:21.5]} 24. Qb3 {[%clk 0:01:39.7]} 24... Rb8 {[%clk 0:02:18.9]} 25. Qd5
{[%clk 0:01:39.3]} 25... c2 {[%clk 0:02:07.8]} 26. Rc1 {[%clk 0:00:58.5]} 26...
h6 {[%clk 0:02:04.7]} 27. Kg2 {[%clk 0:00:54.3]} 27... Rb1 {[%clk 0:01:35.5]}
28. Rxc2 {[%clk 0:00:49.7]} 28... Qxc2 {[%clk 0:01:36.4]} 29. Qxe5 {[%clk
0:00:50.1]} 29... Qc4 {[%clk 0:01:11.7]} 30. Kf3 {[%clk 0:00:39.2]} 30... Rd1
{[%clk 0:00:59.4]} 31. Qe8+ {[%clk 0:00:29.2]} 31... Kh7 {[%clk 0:00:59]} 32.
Qe5 {[%clk 0:00:28.9]} 32... Rd8 {[%clk 0:00:48.7]} 33. h4 {[%clk 0:00:28.3]}
33... Qc6 {[%clk 0:00:46.1]} 34. Qf5+ {[%clk 0:00:25.9]} 34... Kg8 {[%clk
0:00:46.1]} 35. Kg2 {[%clk 0:00:24.3]} 35... Re8 {[%clk 0:00:46.3]} 36. Kf3
{[%clk 0:00:15]} 36... h5 {[%clk 0:00:35]} 37. Qd5 {[%clk 0:00:12]} 37... Qg6
{[%clk 0:00:27.4]} 38. Bf4 {[%clk 0:00:11.8]} 38... Qg4+ {[%clk 0:00:21.1]} 39.
Kg2 {[%clk 0:00:11.9]} 39... Qe2 {[%clk 0:00:19.3]} 40. e5 {[%clk 0:00:11.5]}
40... Qg4 {[%clk 0:00:19.2]} 41. Qf3 {[%clk 0:00:11.5]} 41... Qxf3+ {[%clk
0:00:17.7]} 42. Kxf3 {[%clk 0:00:12.4]} 42... Ra8 {[%clk 0:00:17.8]} 43. Be3
{[%clk 0:00:11.7]} 43... Kh7 {[%clk 0:00:15.5]} 44. Ke4 {[%clk 0:00:11.7]} 44...
Ra4+ {[%clk 0:00:13.4]} 45. Kf5 {[%clk 0:00:11.3]} 45... Ra6 {[%clk 0:00:13.5]}
46. Bd4 {[%clk 0:00:10.1]} 46... Ra4 {[%clk 0:00:12]} 47. Be3 {[%clk 0:00:10.2]}
47... Kg8 {[%clk 0:00:09.6]} 48. Kg5 {[%clk 0:00:09.4]} 48... g6 {[%clk
0:00:08.4]} 49. Kf6 {[%clk 0:00:09.7]} 49... Ra6+ {[%clk 0:00:08.4]} 50. Kg5
{[%clk 0:00:10.3]} 50... Kf8 {[%clk 0:00:08.5]} 51. Kf4 {[%clk 0:00:06.3]} 51...
Ke7 {[%clk 0:00:08.4]} 52. g4 {[%clk 0:00:03.2]} 52... Ra4+ {[%clk 0:00:07.6]}
53. Kg3 {[%clk 0:00:01.7]} 53... Rxg4+ {[%clk 0:00:08.5]} 54. Kh3 {[%clk
0:00:02.3]} 54... Ke6 {[%clk 0:00:09.1]} 55. f4 {[%clk 0:00:03]} 55... Kf5
{[%clk 0:00:09.2]} 56. Bd2 {[%clk 0:00:02.7]} 56... Rxf4 {[%clk 0:00:09.5]} 57.
Bxf4 {[%clk 0:00:02.9]} 57... Kxf4 {[%clk 0:00:10.4]} 0-1